bitfinex-derivatives/quotes_BTCF0:USTF0_20250922
["timestamp","ask_amount","ask_price","bid_price","bid_amount"]
[1758571120458,0.0384819,112220.0,112210.0,1.92170788]
[1758571120654,0.0384819,112220.0,112210.0,0.6861179]
[1758571120962,0.0384819,112220.0,112210.0,1.5286379]
[1758571121659,0.0384819,112220.0,112210.0,1.92150788]
[1758571121857,0.0384819,112220.0,112210.0,1.07898788]
[1758571122062,0.0384819,112220.0,112210.0,1.92142788]
[1758571126059,0.46256188,112220.0,112210.0,1.5282379]
[1758571126461,0.0696919,112220.0,112210.0,1.5282379]
[1758571127761,0.0696919,112220.0,112210.0,0.6861179]
[1758571128062,0.0696919,112220.0,112210.0,1.5282379]
[1758571128558,0.0696919,112220.0,112210.0,0.6861179]
[1758571128764,0.0696919,112220.0,112210.0,1.5281179]
[1758571130661,0.91240148,112220.0,112210.0,0.1161179]
[1758571130859,0.55160148,112220.0,112210.0,0.9580779]
[1758571131058,0.1587315,112220.0,112210.0,0.9580779]
[1758571131366,0.55160148,112220.0,112210.0,0.9580779]
[1758571131768,0.91240148,112220.0,112210.0,0.1161179]
[1758571131968,1.16240148,112220.0,112210.0,0.00444]
[1758571132267,1.16240148,112220.0,112210.0,0.00404]
[1758571132468,1.16240148,112220.0,112210.0,0.00444]
[1758571132863,1.16240148,112220.0,112210.0,0.0934876]
[1758571133369,1.16240148,112220.0,112210.0,0.1161176]
[1758571134666,0.7695315,112220.0,112210.0,0.50898758]
[1758571134869,0.7695315,112220.0,112210.0,0.1161176]
[1758571136271,0.5195315,112220.0,112210.0,0.1161176]
[1758571136471,0.1587315,112220.0,112210.0,0.1161176]
[1758571136659,0.0696919,112220.0,112210.0,0.50898758]
[1758571137063,0.0696919,112220.0,112210.0,1.35046758]
[1758571137271,0.0696919,112220.0,112210.0,0.9575976]
[1758571137667,0.0329219,112220.0,112210.0,1.60426758]
[1758571137866,0.0329219,112220.0,112210.0,1.94426758]
[1758571138172,0.0460519,112220.0,112210.0,1.94046758]
[1758571138367,0.0460519,112220.0,112210.0,1.09898758]
[1758571138568,0.0686919,112220.0,112210.0,1.5475176]
[1758571138872,0.06879474,112220.0,112210.0,1.5475176]
[1758571139872,0.06879474,112220.0,112210.0,1.2974376]
[1758571140170,0.06879474,112220.0,112210.0,0.4561176]
[1758571140372,0.06879474,112220.0,112210.0,1.2974376]
[1758571141171,0.15783434,112220.0,112210.0,0.4561176]
[1758571141373,0.55070432,112220.0,112210.0,1.1273976]
[1758571141572,0.46166472,112220.0,112210.0,1.1273976]
[1758571141773,0.46166472,112220.0,112210.0,1.1269976]
[1758571141968,0.06879474,112220.0,112210.0,1.1273976]
[1758571142463,0.15783434,112220.0,112210.0,0.9573576]
[1758571142668,0.06879474,112220.0,112210.0,0.9573576]
[1758571143473,0.06879474,112220.0,112210.0,0.9572776]
[1758571143865,0.15783434,112220.0,112210.0,0.1161176]
[1758571144065,1.16150432,112220.0,112210.0,0.00444]
[1758571144275,1.16150432,112220.0,112210.0,0.84512]
[1758571144574,1.16150432,112220.0,112210.0,0.84552]
[1758571145074,0.76863434,112220.0,112210.0,0.86756]
[1758571145270,1.16150432,112220.0,112210.0,0.86716]
[1758571145572,1.16150432,112220.0,112210.0,0.86756]
[1758571145973,0.76863434,112220.0,112210.0,0.84552]
[1758571146168,1.16150432,112220.0,112210.0,0.84552]
[1758571146674,1.16150432,112220.0,112210.0,0.00444]
[1758571149874,1.16150432,112220.0,112210.0,0.00404]
[1758571150067,1.16150432,112220.0,112210.0,0.00444]
[1758571150068,0.76863434,112220.0,112210.0,0.00444]
[1758571150374,2.00234432,112220.0,112210.0,0.00444]
[1758571150569,1.68522691,112220.0,112210.0,0.00444]
[1758571150880,2.52602691,112220.0,112210.0,0.00444]
[1758571151071,2.53002691,112220.0,112210.0,0.00244]
[1758571151271,1.69222691,112220.0,112210.0,0.00244]
[1758571151774,2.53302691,112220.0,112210.0,0.00244]
[1758571152379,1.69222691,112220.0,112210.0,0.00244]
[1758571152573,2.53302691,112220.0,112210.0,0.00244]
[1758571153084,0.80747984,112220.0,112210.0,0.00244]
[1758571153277,1.11546572,112220.0,112210.0,0.00244]
[1758571153479,1.11546572,112220.0,112210.0,0.1135276]
[1758571153674,1.02642612,112220.0,112210.0,0.1135276]
[1758571153874,1.11546572,112220.0,112210.0,0.1135276]
[1758571154778,1.11546572,112220.0,112210.0,0.00244]
[1758571154976,0.52563434,112220.0,112210.0,0.1135276]
[1758571155166,0.43659474,112220.0,112210.0,0.1135276]
[1758571155367,1.02642612,112220.0,112210.0,0.1135276]
[1758571155577,0.43659474,112220.0,112210.0,0.40844329]
[1758571155876,1.02642612,112220.0,112210.0,0.1135276]
[1758571156976,0.73151043,112220.0,112210.0,0.1135276]
[1758571157185,1.11546572,112220.0,112210.0,0.1135276]
[1758571157478,1.11546572,112220.0,112210.0,0.00244]
[1758571157682,1.11546572,112220.0,112210.0,0.0910876]
[1758571157872,1.11546572,112220.0,112210.0,0.0914876]
[1758571158072,1.02642612,112220.0,112210.0,0.1134876]
[1758571158272,0.43659474,112220.0,112210.0,0.1134876]
[1758571158473,1.02642612,112220.0,112210.0,0.1134876]
[1758571158776,1.11546572,112220.0,112210.0,0.1134876]
[1758571160080,1.02642612,112220.0,112210.0,0.1134876]
[1758571160974,0.43659474,112220.0,112210.0,0.1134876]
[1758571161175,0.73151043,112220.0,112210.0,0.40840329]
[1758571161776,1.02642612,112220.0,112210.0,0.1134876]
[1758571162483,0.73151043,112220.0,112210.0,0.40840329]
[1758571163072,1.11546572,112220.0,112210.0,0.02444]
[1758571163276,1.11546572,112220.0,112210.0,0.00244]
[1758571163783,1.11546572,112220.0,112210.0,0.00204]
[1758571163980,1.11546572,112220.0,112210.0,0.00244]
[1758571164180,1.11546572,112220.0,112210.0,0.0914876]
[1758571164377,0.43659474,112220.0,112210.0,0.1136176]
[1758571164684,0.73151043,112220.0,112210.0,0.40853329]
[1758571164882,1.02642612,112220.0,112210.0,0.1136176]
[1758571165282,1.11546572,112220.0,112210.0,0.1136176]
[1758571165485,1.02642612,112220.0,112210.0,0.0914876]
[1758571165676,1.02642612,112220.0,112210.0,0.1132176]
[1758571165677,0.43659474,112220.0,112210.0,0.1132176]
[1758571165876,1.02642612,112220.0,112210.0,0.1136176]
[1758571166280,0.37071043,112220.0,112210.0,0.40853329]
[1758571166480,0.37071043,112220.0,112210.0,0.76933329]
[1758571166779,0.07579474,112220.0,112210.0,0.76933329]
[1758571167086,0.37071043,112220.0,112210.0,0.76933329]
[1758571167278,0.07579474,112220.0,112210.0,1.01933329]
[1758571167781,0.37071043,112220.0,112210.0,1.85953329]
[1758571168089,0.07579474,112220.0,112210.0,0.9538176]
[1758571168285,0.37071043,112220.0,112210.0,1.60953329]
[1758571168591,0.37071043,112220.0,112210.0,1.24873329]
[1758571169375,0.07579474,112220.0,112210.0,1.24873329]
[1758571169575,0.04002474,112220.0,112210.0,1.60953329]
[1758571169883,0.05362474,112220.0,112210.0,1.85953329]
[1758571170186,0.36986043,112220.0,112210.0,0.7244176]
[1758571170382,0.36986043,112220.0,112210.0,1.49865329]
[1758571170577,0.36986043,112220.0,112210.0,0.65853329]
[1758571170786,0.36986043,112220.0,112210.0,1.49865329]
[1758571171489,0.36986043,112220.0,112210.0,0.3636176]
[1758571171680,0.66477612,112220.0,112210.0,0.9536976]
[1758571171883,1.02557612,112220.0,112210.0,0.9315676]
[1758571172188,1.36461572,112220.0,112210.0,0.00204]
[1758571172389,0.77478434,112220.0,112210.0,0.00244]
[1758571172586,1.36461572,112220.0,112210.0,0.00244]
[1758571172790,1.36461572,112220.0,112210.0,0.00204]
[1758571173091,1.69137691,112220.0,112210.0,0.00244]
[1758571173292,1.69137691,112220.0,112210.0,0.00204]
[1758571173490,1.69137691,112220.0,112210.0,0.00244]
[1758571173991,2.23650122,112220.0,112210.0,0.00244]
[1758571175691,1.39646122,112220.0,112210.0,0.00244]
[1758571178188,1.69137691,112220.0,112210.0,0.00244]
[1758571178793,1.73902564,112220.0,112210.0,0.00204]
[1758571178994,1.73902564,112220.0,112210.0,0.00244]
[1758571179193,0.1239676,112210.0,112200.0,0.00014]
[1758571179396,1.93758372,112210.0,112200.0,4e-05]
[1758571179985,1.93758372,112210.0,112200.0,0.00044]
[1758571180381,1.94658372,112210.0,112200.0,0.00044]
[1758571180892,1.12712504,112210.0,112200.0,0.00044]
[1758571181095,1.96708504,112210.0,112200.0,0.00044]
[1758571181682,1.97008504,112210.0,112200.0,0.00244]
[1758571182288,1.97008504,112210.0,112200.0,0.00204]
[1758571182590,1.97008504,112210.0,112200.0,0.00244]
[1758571183196,1.13012504,112210.0,112200.0,0.00244]
[1758571183393,0.1239755,112200.0,112190.0,0.0001]
[1758571183696,0.1239834,112190.0,112180.0,0.089171]
[1758571183995,0.80272383,112190.0,112180.0,0.089071]
[1758571184588,0.71366043,112190.0,112180.0,0.089071]
[1758571184894,0.71666043,112190.0,112180.0,0.097071]
[1758571185289,0.81172383,112190.0,112180.0,0.008]
[1758571185487,1.08814266,112190.0,112180.0,0.0970714]
[1758571185691,0.79322697,112190.0,112180.0,0.0970714]
[1758571185892,0.79322697,112190.0,112180.0,0.1192014]
[1758571186202,0.49831128,112190.0,112180.0,0.1192014]
[1758571186396,0.49831128,112190.0,112180.0,0.41411709]
[1758571186698,0.43242697,112190.0,112180.0,0.66411709]
[1758571187100,0.11448654,112190.0,112180.0,0.66411709]
[1758571187300,0.40940223,112190.0,112180.0,0.66411709]
[1758571187990,0.77020223,112190.0,112180.0,0.66411709]
[1758571188188,0.40940223,112190.0,112180.0,0.66411709]
[1758571188401,0.11448654,112190.0,112180.0,1.50395709]
[1758571188596,0.04392,112190.0,112180.0,2.15967278]
[1758571189204,0.009,112190.0,112180.0,2.45271278]
[1758571190202,0.33883569,112190.0,112180.0,1.2490414]
[1758571190404,0.33883569,112190.0,112180.0,1.3598414]
[1758571190603,0.33883569,112190.0,112180.0,0.9590414]
[1758571190906,0.33883569,112190.0,112180.0,1.25395709]
[1758571191104,0.04392,112190.0,112180.0,1.25395709]
[1758571191306,0.33883569,112190.0,112180.0,0.1192014]
[1758571191603,0.33883569,112190.0,112180.0,0.9590014]
[1758571191909,0.33883569,112190.0,112180.0,0.9594014]
[1758571192109,0.69963569,112190.0,112180.0,0.9594014]
[1758571192606,0.69963569,112190.0,112180.0,0.9589614]
[1758571192910,0.69963569,112190.0,112180.0,0.9593614]
[1758571194701,0.69963569,112190.0,112180.0,1.25427709]
[1758571195104,0.69963569,112190.0,112180.0,0.9593614]
[1758571195301,0.04392,112190.0,112180.0,1.86507709]
[1758571195505,0.009,112190.0,112180.0,2.49303278]
[1758571195705,0.009,112190.0,112180.0,1.9032014]
[1758571196110,0.009,112190.0,112180.0,2.49303278]
[1758571196513,0.0218,112190.0,112180.0,2.49303278]
[1758571197010,0.009,112190.0,112180.0,2.49303278]
[1758571197405,0.0218,112190.0,112180.0,2.48999278]
[1758571198207,0.0218,112190.0,112180.0,1.6501614]
[1758571198411,0.33972569,112190.0,112180.0,0.4496014]
[1758571198610,0.33972569,112190.0,112180.0,1.26419709]
[1758571198810,0.04481,112190.0,112180.0,1.26419709]
[1758571199103,0.04481,112190.0,112180.0,1.95499709]
[1758571199308,0.04481,112190.0,112180.0,2.24991278]
[1758571199717,0.33972569,112190.0,112180.0,1.6600814]
[1758571199912,0.33972569,112190.0,112180.0,1.95499709]
[1758571200116,0.04481,112190.0,112180.0,1.6600814]
[1758571200316,0.04481,112190.0,112180.0,1.61499709]
[1758571201209,0.04481,112190.0,112180.0,0.77531709]
[1758571201414,0.33972569,112190.0,112180.0,1.61495709]
[1758571201614,0.04481,112190.0,112180.0,1.61455709]
[1758571201814,0.33972569,112190.0,112180.0,0.77531709]
[1758571202013,0.33972569,112190.0,112180.0,1.61495709]
[1758571202214,0.33972569,112190.0,112180.0,0.77531709]
[1758571202510,0.04481,112190.0,112180.0,1.61495709]
[1758571202711,0.33972569,112190.0,112180.0,1.3200414]
[1758571202912,0.33972569,112190.0,112180.0,1.61495709]
[1758571203107,0.04481,112190.0,112180.0,1.90987278]
[1758571203421,0.009,112190.0,112180.0,2.46835278]
[1758571204111,0.0218,112190.0,112180.0,2.45987278]
[1758571204616,0.0218,112190.0,112180.0,2.16495709]
[1758571205020,0.0218,112190.0,112180.0,1.8700414]
[1758571205220,0.0218,112190.0,112180.0,1.32531709]
[1758571205421,0.0218,112190.0,112180.0,2.16495709]
[1758571206623,0.0218,112190.0,112180.0,2.45987278]
[1758571206819,0.009,112190.0,112180.0,2.46835278]
[1758571208822,0.009,112190.0,112180.0,2.76326847]
[1758571209327,0.009,112190.0,112180.0,4.34579278]
[1758571209721,0.009,112190.0,112180.0,1.62871278]
[1758571209925,0.009,112190.0,112180.0,4.34579278]
[1758571210323,0.009,112190.0,112180.0,2.46831278]
[1758571211423,0.009,112190.0,112180.0,2.46827278]
[1758571212526,0.009,112190.0,112180.0,2.27146829]
[1758571212824,0.83836238,112220.0,112210.0,0.1123488]
[1758571213025,0.87428776,112220.0,112210.0,0.9519088]
[1758571213225,0.87415776,112220.0,112210.0,0.9519088]
[1758571213425,0.96319846,112220.0,112210.0,0.9519088]
[1758571213820,0.96305846,112220.0,112210.0,0.9519088]
[1758571214128,0.97405846,112220.0,112210.0,0.9519088]
[1758571214320,0.98005846,112220.0,112210.0,0.9549088]
[1758571215031,0.98005846,112220.0,112210.0,0.0263]
[1758571215221,1.23005846,112220.0,112210.0,0.003]
[1758571215528,1.23005846,112220.0,112210.0,0.0034]
[1758571215730,1.23005846,112220.0,112210.0,0.003]
[1758571215928,1.23005846,112220.0,112210.0,0.0034]
[1758571216131,0.83703157,112220.0,112210.0,0.003]
[1758571216328,1.23005846,112220.0,112210.0,0.0034]
[1758571218127,1.23005846,112220.0,112210.0,0.00280455]
[1758571218330,1.23005846,112220.0,112210.0,0.00320455]
[1758571218531,0.98005846,112220.0,112210.0,0.00320455]
[1758571218727,1.81953846,112220.0,112210.0,0.00320455]
[1758571219629,0.98005846,112220.0,112210.0,0.00320455]
[1758571219830,1.81953846,112220.0,112210.0,0.00320455]
[1758571220136,1.85126078,112220.0,112210.0,0.00320455]
[1758571220635,2.10126078,112220.0,112210.0,0.00320455]
[1758571221529,1.26178078,112220.0,112210.0,0.00320455]
[1758571221730,1.01178078,112220.0,112210.0,0.00320455]
[1758571221933,1.85126078,112220.0,112210.0,0.00320455]
[1758571222528,1.85126078,112220.0,112190.0,0.0009]
[1758571222529,0.1236368,112200.0,112190.0,0.0009]
[1758571222843,0.1236447,112190.0,112180.0,0.0890717]
[1758571223037,0.90059697,112190.0,112180.0,0.0890717]
[1758571223231,0.90059697,112190.0,112180.0,0.1106917]
[1758571223528,0.90059697,112190.0,112180.0,0.1110917]
[1758571223729,0.89959697,112190.0,112180.0,0.1110917]
[1758571223931,0.50657008,112190.0,112180.0,0.02202]
[1758571224231,0.90259697,112190.0,112180.0,0.03302]
[1758571224436,0.90259697,112190.0,112180.0,0.1220926]
[1758571224832,0.42150538,112190.0,112180.0,0.1220926]
[1758571225034,0.81453227,112190.0,112180.0,0.1220926]
[1758571225235,0.90359687,112190.0,112180.0,0.1220926]
[1758571225738,0.90859687,112190.0,112180.0,0.1230926]
[1758571225939,0.51656998,112190.0,112180.0,0.1250926]
[1758571226239,0.90959687,112190.0,112180.0,0.1250926]
[1758571226431,0.91159687,112190.0,112180.0,0.1250926]
[1758571226832,0.42950538,112190.0,112180.0,0.77493949]
[1758571227131,0.41689538,112190.0,112180.0,0.77493949]
[1758571227332,0.50595988,112190.0,112180.0,0.3819126]
[1758571227531,0.41689538,112190.0,112180.0,0.3819126]
[1758571227734,0.03412538,112190.0,112180.0,0.7427126]
[1758571228139,0.011,112190.0,112180.0,1.46573949]
[1758571232438,0.011,112190.0,112180.0,1.0727126]
[1758571232639,0.011,112190.0,112180.0,2.30521949]
[1758571232838,0.011,112190.0,112180.0,2.30517949]
[1758571234841,0.011,112190.0,112180.0,1.9121526]
[1758571235140,0.011,112190.0,112180.0,2.30517949]
[1758571238640,0.011,112190.0,112180.0,1.46573949]
[1758571238832,0.011,112190.0,112180.0,2.30513949]
[1758571239441,0.011,112190.0,112180.0,2.05513949]
[1758571239844,0.011,112190.0,112180.0,1.6621126]
[1758571240931,0.011,112190.0,112180.0,2.05513949]
[1758571242744,0.1130846,112190.0,112180.0,1.3321126]
[1758571243039,0.4949346,112190.0,112180.0,0.1319126]
[1758571243342,0.9111246,112190.0,112180.0,0.9644526]
[1758571243739,0.9111246,112190.0,112180.0,0.9640526]
[1758571244143,0.9111246,112190.0,112180.0,0.9644526]
[1758571244344,0.51809771,112190.0,112180.0,0.9644526]
[1758571244738,0.9111246,112190.0,112180.0,0.9640526]
[1758571244940,0.9111246,112190.0,112180.0,0.9644526]
[1758571245839,0.9111246,112190.0,112180.0,0.1250926]
[1758571246043,0.9111246,112190.0,112180.0,0.8507326]
[1758571246346,1.1611246,112190.0,112180.0,0.03562]
[1758571246547,1.1611246,112190.0,112180.0,0.9423924]
[1758571246840,1.1611246,112190.0,112180.0,0.9655824]
[1758571247145,1.1611246,112190.0,112180.0,0.9651824]
[1758571247346,1.1611246,112190.0,112180.0,0.9655824]
[1758571249247,0.76809771,112190.0,112180.0,0.9655824]
[1758571249649,1.1611246,112190.0,112180.0,0.9655824]
[1758571256642,0.51809771,112190.0,112180.0,0.9655824]
[1758571256843,0.9111246,112190.0,112180.0,0.9655824]
[1758571260058,0.9111246,112190.0,112180.0,0.03719]
[1758571260247,0.9111246,112190.0,112180.0,0.87635]
[1758571260955,0.9111246,112190.0,112180.0,0.9654224]
[1758571263456,0.9111246,112190.0,112180.0,0.9653424]
[1758571264647,0.51809771,112190.0,112180.0,0.9653424]
[1758571264843,0.9111246,112190.0,112180.0,0.9653424]
[1758571265644,0.41601311,112190.0,112180.0,0.9726024]
[1758571265849,0.03416311,112190.0,112180.0,1.97642929]
[1758571266050,0.48402761,112190.0,112180.0,1.86655689]
[1758571266250,0.9123145,112190.0,112180.0,0.87623]
[1758571266662,0.9123145,112190.0,112180.0,0.03679]
[1758571266958,0.9123145,112190.0,112180.0,0.87623]
[1758571267956,0.9123145,112190.0,112180.0,0.03719]
[1758571268155,0.9123145,112190.0,112180.0,0.87619]
[1758571270155,0.9123145,112190.0,112180.0,0.853]
[1758571270454,0.9123145,112190.0,112180.0,0.8534]
[1758571270858,0.9123145,112190.0,112180.0,0.0144]
[1758571271054,1.1623145,112190.0,112180.0,0.0144]
[1758571271255,1.1623145,112190.0,112180.0,0.014]
[1758571271458,1.1623145,112190.0,112180.0,0.0144]
[1758571271655,1.19406729,112190.0,112180.0,0.014]
[1758571271857,1.19406729,112190.0,112180.0,0.0144]
[1758571272160,1.1623145,112190.0,112180.0,0.014]
[1758571272357,1.1623145,112190.0,112180.0,0.0144]
[1758571272559,1.1553145,112190.0,112180.0,0.0134]
[1758571272760,1.1643145,112190.0,112180.0,0.0134]
[1758571273149,1.1643145,112190.0,112180.0,0.0064]
[1758571273150,1.1603145,112190.0,112180.0,0.0064]
[1758571273355,1.19506729,112190.0,112180.0,0.0064]
[1758571274560,1.3921658,112190.0,112180.0,0.0064]
[1758571276660,1.36900269,112190.0,112180.0,0.0064]
[1758571276859,1.39221077,112190.0,112180.0,0.0064]
[1758571277264,2.23109077,112190.0,112180.0,0.0064]
[1758571277465,2.19933798,112190.0,112180.0,0.0064]
[1758571279165,1.36045798,112190.0,112180.0,0.0064]
[1758571279360,2.19929798,112190.0,112180.0,0.0064]
[1758571283866,2.19929798,112190.0,112180.0,0.006]
[1758571284066,2.19929798,112190.0,112180.0,0.0064]
[1758571286174,1.36045798,112190.0,112180.0,0.0064]
[1758571286469,2.19917798,112190.0,112180.0,0.0064]
[1758571287972,1.94917798,112190.0,112180.0,0.0064]
[1758571290070,1.14221077,112190.0,112180.0,0.0064]
[1758571290275,1.98085077,112190.0,112180.0,0.0064]
[1758571291176,1.14221077,112190.0,112180.0,0.0064]
[1758571291376,1.14221077,112190.0,112180.0,0.02757]
[1758571291580,1.98081077,112190.0,112180.0,0.02757]
[1758571292171,1.14221077,112190.0,112180.0,0.02757]
[1758571292372,1.98081077,112190.0,112180.0,0.02757]
[1758571292573,1.14221077,112190.0,112180.0,0.02757]
[1758571292781,1.98081077,112190.0,112180.0,0.02757]
[1758571292971,1.14221077,112190.0,112180.0,0.02757]
[1758571293172,1.98081077,112190.0,112180.0,0.02757]
[1758571295676,1.98073077,112190.0,112180.0,0.1166508]
[1758571296077,1.98073077,112190.0,112180.0,0.02757]
[1758571296377,1.98073077,112190.0,112180.0,0.0064]
[1758571297080,2.27579347,112190.0,112180.0,0.0064]
[1758571297274,2.27579347,112190.0,112180.0,0.006]
[1758571297478,1.98073077,112190.0,112180.0,0.0064]
[1758571298978,1.39060537,112190.0,112180.0,0.0064]
[1758571299183,1.98073077,112190.0,112180.0,0.0064]
[1758571299883,1.98065077,112190.0,112180.0,0.0064]
[1758571301575,1.99654671,112190.0,112180.0,0.0064]
[1758571301777,1.94889798,112190.0,112180.0,0.0064]
[1758571302184,1.99654671,112190.0,112180.0,0.0064]
[1758571306386,1.15810671,112190.0,112180.0,0.0064]
[1758571306587,1.99638671,112190.0,112180.0,0.0064]
[1758571307589,1.15810671,112190.0,112180.0,0.0064]
[1758571307786,1.99634671,112190.0,112180.0,0.0064]
[1758571308190,1.15810671,112190.0,112180.0,0.0064]
[1758571308589,1.99630671,112190.0,112180.0,0.0064]
[1758571309094,1.99630671,112190.0,112180.0,0.02757]
[1758571309295,1.99630671,112190.0,112180.0,0.0064]
[1758571314292,2.29136941,112190.0,112180.0,0.0064]
[1758571314597,2.24372068,112190.0,112180.0,0.0064]
[1758571315689,2.24372068,112190.0,112180.0,0.006]
[1758571315891,2.24372068,112190.0,112180.0,0.0064]
[1758571316389,2.29156541,112190.0,112180.0,0.0064]
[1758571319198,1.99626271,112190.0,112180.0,0.0064]
[1758571319395,2.29132541,112190.0,112180.0,0.0064]
[1758571319590,1.45336541,112190.0,112180.0,0.0064]
[1758571319791,1.15830271,112190.0,112180.0,0.006]
[1758571319992,1.99618271,112190.0,112180.0,0.0064]
[1758571320191,1.15830271,112190.0,112180.0,0.0064]
[1758571320402,1.99618271,112190.0,112180.0,0.0064]
[1758571320600,1.1423525,112190.0,112180.0,0.0064]
[1758571320799,1.9802325,112190.0,112180.0,0.02813]
[1758571321000,1.9801925,112190.0,112180.0,0.02813]
[1758571321501,1.1423525,112190.0,112180.0,0.02813]
[1758571321702,1.9801925,112190.0,112180.0,0.02813]
[1758571322093,1.9801925,112190.0,112180.0,0.0064]
[1758571322402,2.2752552,112190.0,112180.0,0.0064]
[1758571322699,2.32309993,112190.0,112180.0,0.0064]
[1758571323500,2.02803723,112190.0,112180.0,0.0064]
[1758571324400,2.32309993,112190.0,112180.0,0.0064]
[1758571324596,2.29120541,112190.0,112180.0,0.0064]
[1758571324792,0.1243705,112180.0,112170.0,0.0001]
[1758571324992,0.1243785,112170.0,112160.0,0.00094]
[1758571325196,2.23129468,112170.0,112160.0,4e-05]
[1758571325412,2.26319078,112170.0,112160.0,4e-05]
[1758571325703,2.26319078,112170.0,112160.0,0.00044]
[1758571326002,2.26913941,112170.0,112160.0,4e-05]
[1758571326189,2.25315678,112170.0,112160.0,0.00044]
[1758571326392,2.25315678,112170.0,112160.0,0.00704]
[1758571326596,2.25615678,112170.0,112160.0,0.00744]
[1758571326797,2.26515678,112170.0,112160.0,0.00704]
[1758571326996,2.26515678,112170.0,112160.0,0.00744]
[1758571327706,2.26515678,112170.0,112160.0,0.00704]
[1758571327898,2.26515678,112170.0,112160.0,0.00744]
[1758571328099,2.27515678,112170.0,112160.0,0.00244]
[1758571328806,1.38996868,112170.0,112160.0,0.00244]
[1758571329006,1.98005408,112170.0,112160.0,0.00244]
[1758571329206,1.98205408,112170.0,112160.0,0.00244]
[1758571329905,2.27711678,112170.0,112160.0,0.00244]
[1758571330400,0.1243864,112160.0,112150.0,0.0001]
[1758571330606,0.1243944,112150.0,112140.0,0.0009]
[1758571330805,1.93612788,112150.0,112140.0,0.0008]
[1758571331306,2.00698328,112150.0,112140.0,0.0008]
[1758571331506,2.00698328,112150.0,112140.0,0.0899123]
[1758571331712,2.01098328,112150.0,112140.0,0.0919123]
[1758571332100,2.01098328,112150.0,112140.0,0.1136423]
[1758571332601,1.08427888,112150.0,112140.0,0.1136423]
[1758571332800,1.62677618,112150.0,112140.0,0.1136423]
[1758571333205,1.92883888,112150.0,112140.0,0.1136423]
[1758571333405,1.63377618,112150.0,112140.0,0.1136423]
[1758571333605,0.79621618,112150.0,112140.0,0.1136423]
[1758571334105,0.79621618,112150.0,112140.0,0.671385]
[1758571335710,0.79621618,112150.0,112140.0,0.3636423]
[1758571336010,0.80492974,112150.0,112140.0,0.3636423]
[1758571336214,1.18909684,112150.0,112140.0,0.1136423]
[1758571336709,0.99259691,112150.0,112140.0,0.3628423]
[1758571336908,0.99259691,112150.0,112140.0,0.3632423]
[1758571337112,0.99259691,112150.0,112140.0,0.3628423]
[1758571337610,0.99259691,112150.0,112140.0,0.0915123]
[1758571337804,0.99259691,112150.0,112140.0,0.0911123]
[1758571338011,0.99259691,112150.0,112140.0,0.0024]
[1758571339506,0.59897144,112150.0,112140.0,0.0024]
[1758571339700,0.99259691,112150.0,112140.0,0.0024]
[1758571340608,0.99259691,112150.0,112140.0,0.002]
[1758571340809,0.99259691,112150.0,112140.0,0.0024]
[1758571343108,1.82991691,112150.0,112140.0,0.0024]
[1758571344019,0.99259691,112150.0,112140.0,0.0024]
[1758571344512,0.59897144,112150.0,112140.0,0.0024]
[1758571344721,1.82987691,112150.0,112140.0,0.0024]
[1758571345020,1.43625144,112150.0,112140.0,0.0024]
[1758571345210,1.82987691,112150.0,112140.0,0.0024]
[1758571345411,0.99259691,112150.0,112140.0,0.0024]
[1758571345714,1.82987691,112150.0,112140.0,0.0024]
[1758571347218,0.99259691,112150.0,112140.0,0.0024]
[1758571347417,1.82983691,112150.0,112140.0,0.0024]
[1758571347714,0.99259691,112150.0,112140.0,0.0024]
[1758571347914,1.82979691,112150.0,112140.0,0.0024]
[1758571348120,1.82975691,112150.0,112140.0,0.0024]
[1758571349522,0.99259691,112150.0,112140.0,0.02522]
[1758571349820,1.82979691,112150.0,112140.0,0.02522]
[1758571350016,1.82979691,112150.0,112140.0,0.0024]
[1758571350219,1.86165901,112150.0,112140.0,0.0024]
[1758571351625,0.1256523,112140.0,112130.0,0.1044386]
[1758571351822,0.90328585,112140.0,112130.0,0.1044386]
[1758571353718,0.90328585,112140.0,112130.0,0.02282]
[1758571353719,0.91328585,112140.0,112130.0,0.02282]
[1758571354424,1.75128585,112140.0,112130.0,0.1119406]
[1758571354623,1.35766038,112140.0,112130.0,0.1119406]
[1758571354923,1.75128585,112140.0,112130.0,0.1119406]
[1758571355317,1.75328585,112140.0,112130.0,0.1119406]
[1758571355822,1.75324585,112140.0,112130.0,0.1119406]
[1758571356023,0.91628585,112140.0,112130.0,0.1119406]
[1758571356224,1.75324585,112140.0,112130.0,0.1119406]
[1758571356618,0.52266078,112140.0,112130.0,0.1119406]
[1758571357124,0.91628625,112140.0,112130.0,0.1119406]
[1758571359227,0.91628625,112140.0,112130.0,0.02282]
[1758571359726,0.91628625,112140.0,112130.0,0.1119406]
[1758571360227,1.75316625,112140.0,112130.0,0.1119406]
[1758571360417,0.1256606,112130.0,112120.0,0.02362]
[1758571360626,0.90329415,112130.0,112120.0,0.1119486]
[1758571361126,0.90329415,112130.0,112120.0,0.1123486]
[1758571362117,0.90329415,112130.0,112120.0,0.1123886]
[1758571362927,0.90729415,112130.0,112120.0,0.1123886]
[1758571363533,0.91329415,112130.0,112120.0,0.1123886]
[1758571364428,0.91329415,112130.0,112120.0,0.1124286]
[1758571366323,0.91329415,112130.0,112120.0,0.00048]
[1758571366728,0.91329415,112130.0,112120.0,8e-05]
[1758571366914,0.91329415,112130.0,112120.0,0.00048]
[1758571367120,0.1256683,112120.0,112110.0,0.00747969]
[1758571367429,1.34477205,112120.0,112110.0,0.00667969]
[1758571367621,1.34477205,112120.0,112110.0,0.00707969]
[1758571367622,0.95114658,112120.0,112110.0,0.00707969]
[1758571367929,1.77170574,112120.0,112110.0,0.02989969]
[1758571368528,1.77770574,112120.0,112110.0,0.02989969]
[1758571369626,1.78670574,112120.0,112110.0,0.02989969]
[1758571369826,0.95310574,112120.0,112110.0,0.02989969]
[1758571370524,1.31492732,112120.0,112110.0,0.00707969]
[1758571370726,1.34673121,112120.0,112110.0,0.00707969]
[1758571370923,0.95310574,112120.0,112110.0,0.00707969]
[1758571371123,1.31492732,112120.0,112110.0,0.00707969]
[1758571371326,1.34673121,112120.0,112110.0,0.00707969]
[1758571374527,0.95310574,112120.0,112110.0,0.00707969]
[1758571374728,1.31492732,112120.0,112110.0,0.00707969]
[1758571374922,1.34673121,112120.0,112110.0,0.00707969]
[1758571375127,1.34673121,112120.0,112110.0,0.00667969]
[1758571375334,1.34673121,112120.0,112110.0,0.00707969]
[1758571375734,1.34673121,112120.0,112110.0,0.00667969]
[1758571375938,1.34673121,112120.0,112110.0,0.00707969]
[1758571376434,1.49453121,112120.0,112110.0,0.00707969]